lending/lending_fUSD_20250218
["ID","MTS","AMOUNT","RATE_DAILY","PERIOD"]
[353507964,1739890278837,-500.0,0.00020065,3]
[353507965,1739890278848,-500.0,0.00020065,3]
[353507966,1739890278859,-500.0,0.00020065,3]
[353507967,1739890278870,-332.2412311,0.00020065,3]
[353507968,1739890278880,-500.0,0.00020065,3]
[353507969,1739890278890,-500.0,0.00020065,3]
[353507970,1739890278900,-500.0,0.00020065,3]
[353507971,1739890278910,-500.0,0.00020065,3]
[353507972,1739890278920,-500.0,0.00020065,3]
[353507973,1739890278930,-618.31,0.00020065,3]
[353507974,1739890278942,-500.0,0.00020065,3]
[353507975,1739890278954,-500.0,0.00020065,3]
[353507976,1739890278963,-575.99,0.00020065,3]
[353507977,1739890278974,-500.0,0.00020065,3]
[353507978,1739890278985,-500.0,0.00020065,3]
[353507979,1739890278995,-932.0,0.00020075,2]
[353507980,1739890279005,-500.0,0.00020075,3]
[353507981,1739890279015,-500.0,0.00020075,3]
[353507982,1739890279027,-500.0,0.00020075,3]
[353507983,1739890279038,-500.0,0.00020075,3]
[353507984,1739890279050,-500.0,0.00020075,3]
[353507985,1739890279061,-500.0,0.00020075,3]
[353507986,1739890279071,-500.0,0.00020075,3]
[353507987,1739890279080,-500.0,0.00020075,3]
[353507988,1739890279091,-500.0,0.00020075,3]
[353507989,1739890279101,-500.0,0.00020075,3]
[353507990,1739890279112,-500.0,0.00020075,3]
[353507991,1739890279121,-500.0,0.00020075,3]
[353507992,1739890279131,-500.0,0.00020075,3]
[353507993,1739890279142,-500.0,0.00020075,3]
[353507994,1739890279151,-500.0,0.00020075,3]
[353507995,1739890279161,-500.0,0.00020075,3]
[353507996,1739890279170,-500.0,0.00020075,3]
[353507997,1739890279180,-500.0,0.00020075,3]
[353507998,1739890279189,-500.0,0.00020075,3]
[353507999,1739890279199,-725.7,0.00020075,3]
[353508000,1739890279209,-619.47,0.00020075,3]
[353508001,1739890279219,-905.77,0.00020075,3]
[353508002,1739890279228,-500.0,0.00020075,3]
[353508003,1739890279238,-500.0,0.00020075,3]
[353508004,1739890279247,-661.08,0.00020075,3]
[353508005,1739890279257,-500.0,0.00020075,3]
[353508006,1739890279266,-516.85,0.00020075,3]
[353508007,1739890279275,-526.86597921,0.00020075,3]
[353508008,1739890279284,-500.0,0.00020075,3]
[353508009,1739890279297,-500.0,0.00020075,3]
[353508010,1739890279307,-517.83,0.00020075,3]
[353508011,1739890279316,-500.0,0.00020075,3]
[353508012,1739890279326,-500.0,0.00020075,3]
[353508013,1739890279335,-500.0,0.00020075,3]
[353508014,1739890279345,-573.98,0.00020075,3]
[353508015,1739890279354,-500.0,0.00020075,3]
[353508016,1739890279364,-592.88,0.00020075,3]
[353508017,1739890279374,-586.12,0.00020075,3]
[353508018,1739890279383,-500.0,0.00020075,3]
[353508019,1739890279393,-500.0,0.00020075,3]
[353508020,1739890279403,-500.0,0.00020075,3]
[353508021,1739890279413,-500.0,0.00020075,3]
[353508022,1739890279423,-500.0,0.00020075,3]
[353508023,1739890279433,-188.5,0.00020075,3]
[353508024,1739890279443,-500.0,0.00020075,3]
[353508025,1739890279453,-500.0,0.00020075,3]
[353508026,1739890279463,-957.63,0.00020075,3]
[353508027,1739890279473,-632.1,0.00020075,3]
[353508028,1739890279482,-500.0,0.00020075,3]
[353508029,1739890279491,-534.31,0.00020075,3]
[353508030,1739890279500,-500.0,0.00020075,3]
[353508031,1739890279510,-502.78,0.00020075,3]
[353508032,1739890279520,-2009.57,0.00020075,3]
[353508033,1739890279529,-846.73,0.00020075,3]
[353508034,1739890279539,-551.68,0.00020075,3]
[353508035,1739890279550,-500.0,0.00020075,3]
[353508036,1739890279560,-500.0,0.00020075,3]
[353508037,1739890279569,-679.03,0.00020075,3]
[353508038,1739890279579,-402.1,0.00020075,3]
[353508039,1739890279588,-500.0,0.00020075,3]
[353508040,1739890279597,-500.0,0.00020075,3]
[353508041,1739890279701,-500.0,0.00020075,3]
[353508042,1739890279711,-500.0,0.00020075,3]
[353508043,1739890279721,-221.0,0.00020076,2]
[353508044,1739890279730,-533.72,0.00020076,3]
[353508045,1739890279740,-500.0,0.00020076,3]
[353508046,1739890279750,-1000.0,0.00020076,3]
[353508047,1739890279759,-529.82,0.00020076,3]
[353508048,1739890279768,-500.0,0.00020076,3]
[353508049,1739890279778,-1040.53,0.00020076,3]
[353508050,1739890279788,-685.06,0.00020076,3]
[353508051,1739890279800,-500.0,0.00020076,3]
[353508052,1739890279810,-41420.4343,0.00020077,2]
[353508053,1739890279819,-2000.0,0.00020095,2]
[353508054,1739890279829,-500.0,0.00020126,3]
[353508055,1739890279839,-949.14,0.00020126,3]
[353508056,1739890279849,-500.0,0.00020126,3]
[353508057,1739890279859,-768.16,0.00020126,3]
[353508058,1739890279868,-822.93,0.00020126,3]
[353508059,1739890279878,-546.32,0.00020126,3]
[353508060,1739890279888,-777.03,0.00020126,3]
[353508061,1739890279897,-500.0,0.00020126,3]
[353508062,1739890279907,-500.0,0.00020126,3]
[353508063,1739890279916,-651.37,0.00020126,3]
[353508064,1739890279926,-1383.9,0.00020126,3]
[353508065,1739890279936,-817.8,0.00020126,3]
[353508066,1739890279949,-514.66,0.00020126,3]
[353508067,1739890279959,-500.0,0.00020126,3]
[353508068,1739890279969,-797.16,0.00020126,3]
[353508069,1739890279978,-751.75,0.00020126,3]
[353508070,1739890279989,-500.0,0.00020126,3]
[353508071,1739890279998,-500.0,0.00020126,3]
[353508072,1739890280008,-569.47,0.00020126,3]
[353508073,1739890280019,-1080.27,0.00020126,3]
[353508074,1739890280028,-500.0,0.00020126,3]
[353508075,1739890280038,-500.0,0.00020126,3]
[353508076,1739890280050,-500.0,0.00020126,3]
[353508077,1739890280061,-500.0,0.00020126,3]
[353508078,1739890280071,-504.85,0.00020126,3]
[353508079,1739890280080,-642.73896525,0.00020127,2]
[353508080,1739890280090,-152.87389242,0.00020145,2]
[353508081,1739890280099,-454.88,0.00020155,3]
[353508082,1739890280109,-500.0,0.00020155,3]
[353508083,1739890280119,-500.0,0.00020155,3]
[353508084,1739890280128,-500.0,0.00020155,3]
[353508085,1739890280138,-500.0,0.00020155,3]
[353508086,1739890280147,-500.0,0.00020155,3]
[353508087,1739890280156,-500.0,0.00020155,3]
[353508088,1739890280166,-500.0,0.00020155,3]
[353508089,1739890280175,-232.03250731,0.00020155,3]
[353508090,1739890280184,-604.76,0.00020155,3]
[353508091,1739890280193,-500.0,0.00020155,3]
[353508092,1739890280202,-500.0,0.00020155,3]
[353508093,1739890280212,-500.0,0.00020155,3]
[353508094,1739890280221,-622.38,0.00020155,3]
[353508095,1739890280230,-500.0,0.00020155,3]
[353508096,1739890280240,-500.0,0.00020155,3]
[353508097,1739890280249,-500.0,0.00020155,3]
[353508098,1739890280258,-500.0,0.00020155,3]
[353508099,1739890280267,-500.0,0.00020155,3]
[353508100,1739890280276,-500.0,0.00020155,3]
[353508101,1739890280285,-500.0,0.00020155,3]
[353508102,1739890280297,-500.0,0.00020155,3]
[353508103,1739890280307,-500.0,0.00020155,3]
[353508104,1739890280317,-464.19868937,0.00020155,3]
[353508105,1739890280327,-500.0,0.00020155,3]
[353508106,1739890280337,-500.0,0.00020155,3]
[353508107,1739890280346,-500.0,0.00020155,3]
[353508108,1739890280356,-500.0,0.00020155,3]
[353508109,1739890280366,-500.0,0.00020155,3]
[353508110,1739890280375,-500.0,0.00020155,3]
[353508111,1739890280385,-500.0,0.00020155,3]
[353508112,1739890280394,-500.0,0.00020155,3]
[353508113,1739890280404,-500.0,0.00020155,3]
[353508114,1739890280413,-500.0,0.00020155,3]
[353508115,1739890280422,-500.0,0.00020155,3]
[353508116,1739890280432,-330.852209,0.00020155,3]
[353508117,1739890280441,-500.0,0.00020155,3]
[353508118,1739890280451,-500.0,0.00020155,3]
[353508119,1739890280460,-500.0,0.00020155,3]
[353508120,1739890280469,-434.015601,0.00020155,3]
[353508121,1739890280479,-500.0,0.00020155,3]
[353508122,1739890280489,-500.0,0.00020155,3]
[353508123,1739890280498,-500.0,0.00020155,3]
[353508124,1739890280508,-587.97,0.00020155,3]
[353508125,1739890280517,-1615.52,0.00020155,3]
[353508126,1739890280527,-506.1,0.00020155,3]
[353508127,1739890280537,-621.21,0.00020155,3]
[353508128,1739890280550,-500.0,0.00020155,3]
[353508129,1739890280559,-563.66,0.00020155,3]
[353508130,1739890280568,-712.4,0.00020155,3]
[353508131,1739890280578,-500.0,0.00020155,3]
[353508132,1739890280588,-574.03,0.00020155,3]
[353508133,1739890280598,-500.0,0.00020155,3]
[353508134,1739890280607,-1191.77,0.00020155,3]
[353508135,1739890280617,-618.77,0.00020155,3]
[353508136,1739890280626,-500.0,0.00020155,3]
[353508137,1739890280635,-733.3,0.00020155,3]
[353508138,1739890280645,-500.0,0.00020155,3]
[353508139,1739890280654,-575.56,0.00020155,3]
[353508140,1739890280664,-500.0,0.00020155,3]
[353508141,1739890280674,-500.0,0.00020155,3]
[353508142,1739890280683,-500.0,0.00020155,3]
[353508143,1739890280693,-200.96860261,0.00020155,3]
[353508144,1739890280703,-500.0,0.00020155,3]
[353508145,1739890280712,-500.0,0.00020155,3]
[353508146,1739890280722,-500.0,0.00020155,3]
[353508147,1739890280731,-500.0,0.00020155,3]
[353508148,1739890280740,-265.74,0.00020155,3]
[353508149,1739890280749,-500.0,0.00020155,3]
[353508150,1739890280759,-500.0,0.00020155,3]
[353508151,1739890280768,-500.0,0.00020155,3]
[353508152,1739890280778,-500.0,0.00020155,3]
[353508153,1739890280787,-618.31,0.00020155,3]
[353508154,1739890280799,-500.0,0.00020155,3]
[353508155,1739890280809,-500.0,0.00020155,3]
[353508156,1739890280818,-575.99,0.00020155,3]
[353508157,1739890280828,-500.0,0.00020155,3]
[353508158,1739890280838,-500.0,0.00020155,3]
[353508159,1739890280848,-150.0,0.00020159,5]
[353508160,1739890280858,-150.0,0.00020159,5]
[353508161,1739890280867,-201.0,0.0002017,2]
[353508162,1739890280877,-250.0,0.0002017,2]
[353508163,1739890280886,-200.0,0.0002017,2]
[353508164,1739890280896,-500.0,0.0002017,3]
[353508165,1739890280906,-500.0,0.0002017,3]
[353508166,1739890280916,-500.0,0.0002017,3]
[353508167,1739890280926,-500.0,0.0002017,3]
[353508168,1739890280937,-500.0,0.0002017,3]
[353508169,1739890280951,-500.0,0.0002017,3]
[353508170,1739890280960,-500.0,0.0002017,3]
[353508171,1739890280970,-500.0,0.0002017,3]
[353508172,1739890280979,-500.0,0.0002017,3]
[353508173,1739890280990,-500.0,0.0002017,3]
[353508174,1739890280999,-500.0,0.0002017,3]
[353508175,1739890281009,-502.8433081,0.0002017,3]
[353508176,1739890281018,-500.0,0.0002017,3]
[353508177,1739890281027,-500.0,0.0002017,3]
[353508178,1739890281037,-500.0,0.0002017,3]
[353508179,1739890281047,-500.0,0.0002017,3]
[353508180,1739890281057,-500.0,0.0002017,3]
[353508181,1739890281067,-500.0,0.0002017,3]
[353508182,1739890281077,-500.0,0.0002017,3]
[353508183,1739890281086,-725.7,0.0002017,3]
[353508184,1739890281096,-619.47,0.0002017,3]
[353508185,1739890281105,-905.77,0.0002017,3]
[353508186,1739890281115,-500.0,0.0002017,3]
[353508187,1739890281124,-661.08,0.0002017,3]
[353508188,1739890281133,-500.0,0.0002017,3]
[353508189,1739890281143,-516.85,0.0002017,3]
[353508190,1739890281152,-315.56079138,0.0002017,3]
[353508191,1739890281162,-500.0,0.0002017,3]
[353508192,1739890281171,-517.83,0.0002017,3]
[353508193,1739890281181,-500.0,0.0002017,3]
[353508194,1739890281190,-500.0,0.0002017,3]
[353508195,1739890281199,-500.0,0.0002017,3]
[353508196,1739890281306,-573.98,0.0002017,3]
[353508197,1739890281316,-500.0,0.0002017,3]
[353508198,1739890281325,-592.88,0.0002017,3]
[353508199,1739890281335,-586.12,0.0002017,3]
[353508200,1739890281344,-500.0,0.0002017,3]
[353508201,1739890281354,-500.0,0.0002017,3]
[353508202,1739890281363,-500.0,0.0002017,3]
[353508203,1739890281373,-500.0,0.0002017,3]
[353508204,1739890281382,-500.0,0.0002017,3]
[353508205,1739890281391,-957.63,0.0002017,3]
[353508206,1739890281400,-500.0,0.0002017,3]
[353508207,1739890281410,-534.31,0.0002017,3]
[353508208,1739890281419,-500.0,0.0002017,3]
[353508209,1739890281429,-502.78,0.0002017,3]
[353508210,1739890281438,-2009.57,0.0002017,3]
[353508211,1739890281447,-846.73,0.0002017,3]
[353508212,1739890281456,-551.68,0.0002017,3]
[353508213,1739890281466,-500.0,0.0002017,3]
[353508214,1739890281476,-500.0,0.0002017,3]
[353508215,1739890281485,-679.03,0.0002017,3]
[353508216,1739890281494,-500.0,0.0002017,3]
[353508217,1739890281503,-438.56,0.0002017,3]
[353508218,1739890281513,-500.0,0.0002017,3]
[353508219,1739890281522,-500.0,0.00020172,3]
[353508220,1739890281532,-521.82065554,0.00020172,3]
[353508221,1739890281541,-221.63928303,0.00020172,3]
[353508222,1739890281554,-500.48340073,0.00020172,3]
[353508223,1739890281563,-616.81133468,0.00020172,3]
[353508224,1739890281573,-500.0,0.00020172,3]
[353508225,1739890281583,-162.17783118,0.00020172,3]
[353508226,1739890281592,-500.0,0.00020172,3]
[353508227,1739890281601,-500.92178012,0.00020172,2]
[353508228,1739890281611,-500.0,0.00020172,3]
[353508229,1739890281620,-500.0,0.00020172,3]
[353508230,1739890281630,-500.0,0.00020173,2]
[353508231,1739890281639,-374.6,0.00020176,3]
[353508232,1739890281650,-631.15,0.00020176,3]
[353508233,1739890281659,-500.0,0.00020176,3]
[353508234,1739890281669,-500.0,0.00020176,3]
[353508235,1739890281679,-330.852209,0.00020176,3]
[353508236,1739890281688,-500.0,0.00020176,3]
[353508237,1739890281697,-500.0,0.00020176,3]
[353508238,1739890281708,-434.015601,0.00020176,3]
[353508239,1739890281717,-500.0,0.00020176,3]
[353508240,1739890281727,-500.0,0.00020176,3]
[353508241,1739890281737,-587.97,0.00020176,3]
[353508242,1739890281746,-1615.52,0.00020176,3]
[353508243,1739890281756,-506.1,0.00020176,3]
[353508244,1739890281765,-621.21,0.00020176,3]
[353508245,1739890281775,-563.66,0.00020176,3]
[353508246,1739890281784,-712.4,0.00020176,3]
[353508247,1739890281793,-574.03,0.00020176,3]
[353508248,1739890281807,-500.0,0.00020176,3]
[353508249,1739890281816,-1191.77,0.00020176,3]
[353508250,1739890281826,-618.77,0.00020176,3]
[353508251,1739890281836,-733.3,0.00020176,3]
[353508252,1739890281845,-575.56,0.00020176,3]
[353508253,1739890281857,-500.0,0.00020176,3]
[353508254,1739890281867,-500.0,0.00020176,3]
[353508255,1739890281876,-500.0,0.00020176,3]
[353508256,1739890281886,-500.0,0.00020176,3]
[353508257,1739890281895,-618.31,0.00020176,3]
[353508258,1739890281904,-575.99,0.00020176,3]
[353508259,1739890281913,-500.0,0.00020176,3]
[353508260,1739890281923,-500.0,0.00020176,3]
[353508261,1739890281934,-500.0,0.00020179,3]
[353508262,1739890281944,-500.0,0.00020179,3]
[353508263,1739890281955,-500.0,0.00020179,3]
[353508264,1739890281965,-500.0,0.00020179,3]
[353508265,1739890281975,-604.76,0.00020179,3]
[353508266,1739890281985,-500.0,0.00020179,3]
[353508267,1739890281998,-634.3,0.00020179,2]
[353508268,1739890282017,-500.0,0.00020179,3]
[353508269,1739890282036,-500.0,0.00020179,3]
[353508270,1739890282060,-622.38,0.00020179,3]
[353508271,1739890282077,-500.0,0.00020179,3]
[353508272,1739890282093,-500.0,0.00020179,3]
[353508273,1739890282112,-500.0,0.00020179,3]
[353508274,1739890282131,-500.0,0.00020179,3]
[353508275,1739890282150,-500.0,0.00020179,3]
[353508276,1739890282168,-500.0,0.00020179,3]
[353508277,1739890282185,-500.0,0.00020179,3]
[353508278,1739890282202,-500.0,0.00020179,3]
[353508279,1739890282216,-358.93927388,0.00020179,3]
[353508280,1739890282235,-500.0,0.00020179,3]
[353508281,1739890282248,-500.0,0.00020179,3]
[353508282,1739890282265,-500.0,0.00020179,3]
[353508283,1739890282280,-513.63,0.00020179,3]
[353508284,1739890282296,-500.0,0.00020179,3]
[353508285,1739890282313,-500.0,0.00020179,3]
[353508286,1739890282328,-500.0,0.00020179,3]
[353508287,1739890282342,-500.0,0.00020179,3]
[353508288,1739890282356,-500.0,0.00020179,3]
[353508289,1739890282372,-500.0,0.00020179,3]
[353508290,1739890282387,-500.0,0.00020179,3]
[353508291,1739890282402,-410.16,0.00020179,3]
[353508292,1739890282416,-500.0,0.00020179,3]
[353508293,1739890282431,-500.0,0.00020179,3]
[353508294,1739890282446,-205.62500009,0.00020179,3]
[353508295,1739890282461,-521.44,0.00020179,3]
[353508296,1739890282477,-533.72,0.0002018,3]
[353508297,1739890282491,-500.0,0.0002018,3]
[353508298,1739890282506,-1000.0,0.0002018,3]
[353508299,1739890282521,-529.82,0.0002018,3]
[353508300,1739890282536,-500.0,0.0002018,3]
[353508301,1739890282550,-1040.53,0.0002018,3]
[353508302,1739890282564,-685.06,0.0002018,3]
[353508303,1739890282580,-500.0,0.0002018,3]
[353508304,1739890282594,-206.0,0.0002019,2]
[353508305,1739890282608,-205.0,0.0002019,2]
[353508306,1739890282623,-202.0,0.0002019,2]
[353508307,1739890282636,-202.0,0.0002019,2]
[353508308,1739890282651,-208.0,0.0002019,2]
[353508309,1739890282666,-500.0,0.0002019,3]
[353508310,1739890282681,-500.0,0.0002019,3]
[353508311,1739890282697,-500.0,0.0002019,3]
[353508312,1739890282711,-500.0,0.0002019,3]
[353508313,1739890282726,-500.0,0.0002019,3]
[353508314,1739890282741,-500.0,0.0002019,3]
[353508315,1739890282755,-500.0,0.0002019,3]
[353508316,1739890282770,-500.0,0.0002019,3]
[353508317,1739890282784,-500.0,0.0002019,3]
[353508318,1739890282801,-500.0,0.0002019,3]
[353508319,1739890282816,-500.0,0.0002019,3]
[353508320,1739890282831,-500.0,0.0002019,3]
[353508321,1739890282847,-725.7,0.0002019,3]
[353508322,1739890282862,-619.47,0.0002019,3]
[353508323,1739890282877,-905.77,0.0002019,3]
[353508324,1739890282892,-500.0,0.0002019,3]
[353508325,1739890282906,-661.08,0.0002019,3]
[353508326,1739890282922,-500.0,0.0002019,3]
[353508327,1739890282938,-516.85,0.0002019,3]
[353508328,1739890282955,-500.0,0.0002019,3]
[353508329,1739890282970,-517.83,0.0002019,3]
[353508330,1739890282987,-500.0,0.0002019,3]
[353508331,1739890283003,-500.0,0.0002019,3]
[353508332,1739890283019,-500.0,0.0002019,3]
[353508333,1739890283034,-573.98,0.0002019,3]
[353508334,1739890283051,-500.0,0.0002019,3]
[353508335,1739890283066,-592.88,0.0002019,3]
[353508336,1739890283081,-586.12,0.0002019,3]
[353508337,1739890283096,-500.0,0.0002019,3]
[353508338,1739890283245,-500.0,0.0002019,3]
[353508339,1739890283258,-500.0,0.0002019,3]
[353508340,1739890283268,-500.0,0.0002019,3]
[353508341,1739890283277,-500.0,0.0002019,3]
[353508342,1739890283287,-957.63,0.0002019,3]
[353508343,1739890283296,-225.66599678,0.0002019,3]
[353508344,1739890283307,-534.31,0.0002019,3]
[353508345,1739890283316,-500.0,0.0002019,3]
[353508346,1739890283326,-502.78,0.0002019,3]
[353508347,1739890283335,-2009.57,0.0002019,3]
[353508348,1739890283345,-846.73,0.0002019,3]
[353508349,1739890283354,-551.68,0.0002019,3]
[353508350,1739890283364,-500.0,0.0002019,3]
[353508351,1739890283374,-500.0,0.0002019,3]
[353508352,1739890283383,-679.03,0.0002019,3]
[353508353,1739890283393,-220.80042778,0.0002019,3]
[353508354,1739890283403,-500.0,0.0002019,3]
[353508355,1739890283412,-344.43417589,0.00020191,3]
[353508356,1739890283422,-500.0,0.00020191,3]
[353508357,1739890283431,-500.0,0.00020191,3]
[353508358,1739890283441,-500.0,0.00020191,3]
[353508359,1739890283450,-500.0,0.00020191,3]
[353508360,1739890283460,-500.0,0.00020191,3]
[353508361,1739890283470,-501.02382251,0.00020191,3]
[353508362,1739890283481,-886.0,0.00020191,3]
[353508363,1739890283490,-1060.0,0.00020199,2]
[353508364,1739890283500,-187.77,0.000202,7]
[353508365,1739890283510,-432.109854,0.00020205,2]
[353508366,1739890283519,-160.4061132,0.00020205,2]
[353508367,1739890283528,-886.0,0.00020218,3]
[353508368,1739890283538,-150.0,0.00020219,4]
[353508369,1739890283548,-244.2593734,0.00020219,4]
[353508370,1739890283560,-278.09500878,0.00020219,4]
[353508371,1739890283570,-500.0,0.00020221,3]
[353508372,1739890283579,-500.0,0.00020221,3]
[353508373,1739890283589,-330.852209,0.00020221,3]
[353508374,1739890283598,-500.0,0.00020221,3]
[353508375,1739890283607,-434.015601,0.00020221,3]
[353508376,1739890283616,-500.0,0.00020221,3]
[353508377,1739890283626,-500.0,0.00020221,3]
[353508378,1739890283636,-587.97,0.00020221,3]
[353508379,1739890283645,-1615.52,0.00020221,3]
[353508380,1739890283655,-506.1,0.00020221,3]
[353508381,1739890283665,-621.21,0.00020221,3]
[353508382,1739890283674,-563.66,0.00020221,3]
[353508383,1739890283684,-712.4,0.00020221,3]
[353508384,1739890283693,-574.03,0.00020221,3]
[353508385,1739890283703,-500.0,0.00020221,3]
[353508386,1739890283713,-1191.77,0.00020221,3]
[353508387,1739890283722,-500.0,0.00020221,3]
[353508388,1739890283731,-500.0,0.00020221,3]
[353508389,1739890283740,-949.14,0.00020221,3]
[353508390,1739890283750,-949.14,0.00020221,3]
[353508391,1739890283759,-618.77,0.00020221,3]
[353508392,1739890283769,-500.0,0.00020221,3]
[353508393,1739890283778,-500.0,0.00020221,3]
[353508394,1739890283788,-733.3,0.00020221,3]
[353508395,1739890283797,-768.16,0.00020221,3]
[353508396,1739890283809,-768.16,0.00020221,3]
[353508397,1739890283819,-822.93,0.00020221,3]
[353508398,1739890283828,-822.93,0.00020221,3]
[353508399,1739890283838,-575.56,0.00020221,3]
[353508400,1739890283848,-546.32,0.00020221,3]
[353508401,1739890283857,-546.32,0.00020221,3]
[353508402,1739890283867,-500.0,0.00020221,3]
[353508403,1739890283877,-777.03,0.00020221,3]
[353508404,1739890283887,-777.03,0.00020221,3]
[353508405,1739890283897,-500.0,0.00020221,3]
[353508406,1739890283906,-500.0,0.00020221,3]
[353508407,1739890283916,-500.0,0.00020221,3]
[353508408,1739890283926,-500.0,0.00020221,3]
[353508409,1739890283936,-651.37,0.00020221,3]
[353508410,1739890283948,-651.37,0.00020221,3]
[353508411,1739890283958,-1383.9,0.00020221,3]
[353508412,1739890283967,-1383.9,0.00020221,3]
[353508413,1739890283977,-817.8,0.00020221,3]
[353508414,1739890283987,-817.8,0.00020221,3]
[353508415,1739890283997,-514.66,0.00020221,3]
[353508416,1739890284007,-514.66,0.00020221,3]
[353508417,1739890284017,-500.0,0.00020221,3]
[353508418,1739890284028,-500.0,0.00020221,3]
[353508419,1739890284037,-500.0,0.00020221,3]
[353508420,1739890284047,-500.0,0.00020221,3]
[353508421,1739890284059,-797.16,0.00020221,3]
[353508422,1739890284069,-797.16,0.00020221,3]
[353508423,1739890284078,-751.75,0.00020221,3]
[353508424,1739890284087,-751.75,0.00020221,3]
[353508425,1739890284096,-500.0,0.00020221,3]
[353508426,1739890284106,-500.0,0.00020221,3]
[353508427,1739890284116,-500.0,0.00020221,3]
[353508428,1739890284125,-500.0,0.00020221,3]
[353508429,1739890284135,-500.0,0.00020221,3]
[353508430,1739890284144,-569.47,0.00020221,3]
[353508431,1739890284153,-569.47,0.00020221,3]
[353508432,1739890284162,-1080.27,0.00020221,3]
[353508433,1739890284172,-1080.27,0.00020221,3]
[353508434,1739890284181,-618.31,0.00020221,3]
[353508435,1739890284190,-500.0,0.00020221,3]
[353508436,1739890284200,-500.0,0.00020221,3]
[353508437,1739890284209,-500.0,0.00020221,3]
[353508438,1739890284219,-500.0,0.00020221,3]
[353508439,1739890284228,-150.27,0.00020221,3]
[353508440,1739890284238,-575.99,0.00020221,3]
[353508441,1739890284247,-500.0,0.00020221,3]
[353508442,1739890284256,-500.0,0.00020221,3]
[353508443,1739890284266,-500.0,0.00020221,3]
[353508444,1739890284275,-504.85,0.00020221,3]
[353508445,1739890284285,-504.85,0.00020221,3]
[353508446,1739890284294,-500.0,0.00020221,3]
[353508447,1739890284306,-157.25,0.00020222,3]
[353508448,1739890284316,-500.0,0.00020222,3]
[353508449,1739890284325,-297.12,0.00020222,3]
[353508450,1739890284335,-500.0,0.00020222,3]
[353508451,1739890284344,-500.0,0.00020222,3]
[353508452,1739890284354,-500.0,0.00020222,3]
[353508453,1739890284363,-500.0,0.00020222,3]
[353508454,1739890284372,-478.53,0.00020222,3]
[353508455,1739890284382,-500.0,0.00020222,3]
[353508456,1739890284391,-500.0,0.00020222,3]
[353508457,1739890284400,-500.0,0.00020222,3]
[353508458,1739890284410,-245.17,0.00020222,3]
[353508459,1739890284420,-500.0,0.00020222,3]
[353508460,1739890284430,-574.98,0.00020222,3]
[353508461,1739890284439,-604.76,0.00020222,3]
[353508462,1739890284449,-604.76,0.00020222,3]
[353508463,1739890284459,-604.76,0.00020222,3]